fUSD/lending_fUSD_20260309
["ID","MTS","AMOUNT","RATE_DAILY","PERIOD"]
[408021735,1773037838826,-2500.0,0.00019851,2]
[408021737,1773037838836,-151.0,0.00019851,2]
[408021739,1773037838845,-2500.0,0.00019851,2]
[408021741,1773037838854,-202.29042562,0.00019851,2]
[408021743,1773037838864,-2500.0,0.00019851,2]
[408021744,1773037838878,-2046.99483065,0.00019851,2]
[408021746,1773037838888,-3000.0,0.00019851,2]
[408021748,1773037838899,-3000.0,0.00019851,2]
[408021750,1773037838909,-3000.0,0.00019851,2]
[408021752,1773037838920,-500.0,0.00019851,2]
[408021754,1773037838929,-3000.0,0.00019851,2]
[408021756,1773037838938,-500.0,0.00019851,2]
[408021758,1773037838947,-3000.0,0.00019851,2]
[408021759,1773037838956,-500.0,0.00019851,2]
[408021761,1773037838965,-3000.0,0.00019851,2]
[408021763,1773037838974,-500.0,0.00019851,2]
[408021765,1773037838982,-1267.95446097,0.00019851,2]
[408021767,1773037838991,-500.0,0.00019851,2]
[408021769,1773037839000,-151.0,0.00019851,2]
[408021771,1773037839009,-500.0,0.00019851,2]
[408021772,1773037839019,-151.0,0.00019851,2]
[408021774,1773037839028,-500.0,0.00019851,2]
[408021776,1773037839037,-151.0,0.00019851,2]
[408021778,1773037839046,-174.61919141,0.00019851,2]
[408021780,1773037839055,-500.0,0.00019851,2]
[408021782,1773037839064,-151.0,0.00019851,2]
[408021784,1773037839073,-200.0,0.00019851,2]
[408021786,1773037839082,-500.0,0.00019851,2]
[408021787,1773037839091,-151.0,0.00019851,2]
[408021789,1773037839100,-209.40437684,0.00019851,2]
[408021791,1773037839110,-151.0,0.00019851,2]
[408021793,1773037839120,-151.0,0.00019851,2]
[408021795,1773037839129,-151.0,0.00019851,2]
[408021797,1773037839138,-151.0,0.00019851,2]
[408021799,1773037839148,-151.0,0.00019851,2]
[408021801,1773037839158,-151.0,0.00019851,2]
[408021802,1773037839167,-151.0,0.00019851,2]
[408021804,1773037839177,-151.0,0.00019851,2]
[408021806,1773037839186,-151.0,0.00019851,2]
[408021808,1773037839196,-151.0,0.00019851,2]
[408021810,1773037839207,-151.0,0.00019851,2]
[408021812,1773037839216,-151.0,0.00019851,2]
[408021814,1773037839225,-151.0,0.00019851,2]
[408021816,1773037839234,-151.0,0.00019851,2]
[408021817,1773037839245,-151.0,0.00019851,2]
[408021819,1773037839254,-151.0,0.00019851,2]
[408021821,1773037839263,-500.0,0.00019851,2]
[408021823,1773037839274,-272.62944185,0.00019851,2]
[408021825,1773037839283,-500.0,0.00019851,2]
[408021827,1773037839292,-500.0,0.00019851,2]
[408021829,1773037839302,-290.26104003,0.00019851,2]
[408021831,1773037839311,-500.0,0.00019851,2]
[408021832,1773037839320,-500.0,0.00019851,2]
[408021834,1773037839329,-500.0,0.00019851,2]
[408021836,1773037839339,-500.0,0.00019851,2]
[408021838,1773037839347,-500.0,0.00019851,2]
[408021840,1773037839357,-500.0,0.00019851,2]
[408021842,1773037839367,-500.0,0.00019851,2]
[408021844,1773037839377,-500.0,0.00019851,2]
[408021845,1773037839386,-6110.0,0.00019863,2]
[408021847,1773037839396,-2500.0,0.0001987,2]
[408021849,1773037839405,-500.0,0.00019873,2]
[408021851,1773037839414,-500.0,0.00019873,2]
[408021853,1773037839424,-500.23838819,0.00019873,2]
[408021855,1773037839434,-500.0,0.00019873,2]
[408021857,1773037839443,-502.1202599,0.00019873,2]
[408021859,1773037839452,-500.0,0.00019873,2]
[408021860,1773037839461,-250.0,0.00019873,2]
[408021862,1773037839470,-25000.0,0.00019882,3]
[408021864,1773037839480,-1830.87232848,0.00019883,2]
[408021866,1773037839490,-1000.0,0.00019884,2]
[408021868,1773037839499,-1000.0,0.00019884,2]
[408021870,1773037839508,-1000.0,0.00019884,2]
[408021872,1773037839517,-1000.0,0.00019884,2]
[408021873,1773037839527,-1000.0,0.00019884,2]
[408021876,1773037839536,-1000.0,0.00019884,2]
[408021878,1773037839546,-1000.0,0.00019884,2]
[408021880,1773037839555,-1000.0,0.00019884,2]
[408021882,1773037839565,-1000.0,0.00019884,2]
[408021884,1773037839574,-1830.87232841,0.00019885,2]
[408021886,1773037839584,-1830.87232841,0.00019887,2]
[408021888,1773037839593,-1830.87232841,0.00019889,2]
[408021891,1773037839602,-228.6,0.00019889,2]
[408021892,1773037839611,-1830.87232841,0.00019891,2]
[408021894,1773037839620,-162.63986513,0.00019891,2]
[408021896,1773037839629,-150.0,0.00019891,2]
[408021898,1773037839638,-500.0,0.00019891,2]
[408021900,1773037839648,-201.78439564,0.00019891,2]
[408021902,1773037839657,-253.24682162,0.00019891,2]
[408021904,1773037839666,-432.35755136,0.00019891,2]
[408021906,1773037839676,-186.34426162,0.00019891,2]
[408021908,1773037839685,-25000.0,0.00019891,3]
[408021909,1773037839695,-1830.87232841,0.00019892,2]
[408021911,1773037839704,-271.0,0.00019893,2]
[408021913,1773037839714,-350.0,0.00019894,2]
[408021915,1773037839723,-1830.87232841,0.00019894,2]
[408021917,1773037839732,-1830.87232841,0.00019896,2]
[408021919,1773037839741,-1830.87232841,0.00019898,2]
[408021921,1773037839751,-2000.0,0.000199,2]
[408021923,1773037839760,-250.0,0.000199,2]
[408021925,1773037839770,-3254.93189987,0.000199,2]
[408021927,1773037839779,-25000.0,0.000199,3]
[408021928,1773037839789,-1000.0,0.000199,2]
[408021930,1773037839799,-1977.65489545,0.000199,2]
[408021932,1773037839809,-402.42731676,0.000199,3]
[408021934,1773037839818,-2676.18342042,0.000199,2]
[408021936,1773037839828,-641.0,0.000199,7]
[408021938,1773037839838,-354.10551735,0.000199,2]
[408021940,1773037839848,-1830.87232841,0.000199,2]
[408021942,1773037839857,-2623.80648398,0.000199,2]
[408021944,1773037839867,-1155.22856453,0.000199,2]
[408021945,1773037839877,-2817.0,0.000199,2]
[408021947,1773037839886,-271.0,0.00019904,2]
[408021949,1773037839896,-274.92099103,0.00019917,2]
[408021951,1773037839905,-250.0,0.00019946,2]
[408021953,1773037839914,-500.0,0.00019946,2]
[408021955,1773037839923,-250.0,0.00019946,2]
[408021957,1773037839933,-434.07,0.00019946,2]
[408021959,1773037839942,-168.0,0.00019959,2]
[408021960,1773037839951,-152.8085332,0.00019965,2]
[408021962,1773037839961,-151.0,0.00019968,2]
[408021964,1773037839970,-151.0,0.00019968,2]
[408021966,1773037839979,-1516.0,0.00019968,2]
[408021968,1773037839988,-1516.0,0.00019968,2]
[408021970,1773037839998,-166.0,0.00019968,2]
[408021972,1773037840007,-1516.0,0.00019968,2]
[408021973,1773037840016,-166.0,0.00019968,2]
[408021975,1773037840025,-1516.0,0.00019968,2]
[408021977,1773037840034,-1516.0,0.00019968,2]
[408021979,1773037840043,-160.0,0.00019968,2]
[408021981,1773037840052,-1516.0,0.00019968,2]
[408021983,1773037840061,-160.0,0.00019968,2]
[408021985,1773037840071,-1516.0,0.00019968,2]
[408021987,1773037840080,-160.21318164,0.00019968,2]
[408021989,1773037840090,-1516.0,0.00019968,2]
[408021990,1773037840099,-1516.0,0.00019968,2]
[408021992,1773037840108,-151.0,0.00019968,2]
[408022018,1773037840117,-1516.0,0.00019968,2]
[408022021,1773037840390,-1516.0,0.00019968,2]
[408022023,1773037840400,-151.0,0.00019968,2]
[408022025,1773037840409,-304.07059931,0.00019968,2]
[408022027,1773037840418,-151.0,0.00019968,2]
[408022029,1773037840427,-151.0,0.00019968,2]
[408022031,1773037840438,-151.0,0.00019968,2]
[408022033,1773037840448,-151.0,0.00019968,2]
[408022035,1773037840458,-203.90779088,0.00019968,2]
[408022036,1773037840468,-166.0,0.00019968,2]
[408022038,1773037840477,-166.0,0.00019968,2]
[408022040,1773037840486,-166.0,0.00019968,2]
[408022042,1773037840496,-166.0,0.00019968,2]
[408022044,1773037840505,-166.0,0.00019968,2]
[408022046,1773037840515,-185.0,0.00019968,2]
[408022048,1773037840524,-500.0,0.0001997,2]
[408022050,1773037840533,-700.0,0.0001997,2]
[408022052,1773037840542,-700.0,0.0001997,2]
[408022053,1773037840551,-500.0,0.0001997,2]
[408022055,1773037840560,-700.0,0.0001997,2]
[408022057,1773037840569,-500.0,0.0001997,2]
[408022059,1773037840578,-700.0,0.0001997,2]
[408022061,1773037840588,-500.0,0.0001997,2]
[408022063,1773037840597,-700.0,0.0001997,2]
[408022065,1773037840606,-500.0,0.0001997,2]
[408022067,1773037840615,-700.0,0.0001997,2]
[408022069,1773037840624,-701.52880781,0.0001997,2]
[408022070,1773037840633,-700.0,0.0001997,2]
[408022072,1773037840642,-700.0,0.0001997,2]
[408022074,1773037840651,-985.43524152,0.0001997,2]
[408022076,1773037840660,-500.0,0.00019973,2]
[408022078,1773037840669,-500.0,0.00019973,2]
[408022080,1773037840678,-500.0,0.00019973,2]
[408022082,1773037840687,-595.0,0.00019973,2]
[408022084,1773037840696,-500.0,0.00019973,2]
[408022086,1773037840705,-500.0,0.00019973,2]
[408022087,1773037840714,-500.0,0.00019973,2]
[408022089,1773037840723,-500.0,0.00019973,2]
[408022091,1773037840732,-500.0,0.00019973,2]
[408022093,1773037840741,-324.0,0.00019977,2]
[408022095,1773037840751,-250.0,0.0001998,2]
[408022097,1773037840760,-1000.0,0.00019982,2]
[408022099,1773037840769,-1000.0,0.00019982,2]
[408022101,1773037840778,-357.42,0.00019982,2]
[408022103,1773037840787,-350.0,0.00019982,2]
[408022105,1773037840796,-28528.6778196,0.00019983,2]
[408022106,1773037840805,-4330.3636065,0.00019983,2]
[408022108,1773037840814,-19406.5054726,0.00019983,2]
[408022110,1773037840823,-7371.5026188,0.00019983,2]
[408022112,1773037840832,-35687.3558031,0.00019983,2]
[408022114,1773037840841,-151.0,0.00019997,2]
[408022116,1773037840850,-151.0,0.00019997,2]
[408022118,1773037840859,-150.0,0.00019998,2]
[408022119,1773037840868,-1279.0,0.00019998,2]
[408022121,1773037840876,-1213.0,0.00019998,2]
[408022123,1773037840885,-922.0,0.00019998,2]
[408022125,1773037840895,-5994.0,0.00019998,2]
[408022127,1773037840904,-619.0,0.00019998,2]
[408022129,1773037840913,-300.0,0.00019999,2]
[408022131,1773037840922,-364.8560091,0.00019999,2]
[408022132,1773037840931,-500.0,0.00019999,2]
[408022134,1773037840940,-500.0,0.00019999,2]
[408022136,1773037840951,-500.0,0.00019999,2]
[408022138,1773037840960,-500.0,0.00019999,2]
[408022140,1773037840969,-500.0,0.00019999,2]
[408022142,1773037840978,-500.0,0.00019999,2]
[408022144,1773037840987,-500.0,0.00019999,2]
[408022145,1773037840996,-300.0,0.00019999,2]
[408022147,1773037841006,-250.0,0.00019999,2]
[408022149,1773037841015,-531.36984166,0.00019999,2]
[408022151,1773037841024,-474.81557668,0.00019999,2]
[408022153,1773037841033,-500.0,0.00019999,2]
[408022155,1773037841042,-500.0,0.00019999,2]
[408022157,1773037841051,-500.0,0.00019999,2]
[408022159,1773037841061,-366.51886759,0.00019999,2]
[408022160,1773037841070,-500.0,0.00019999,2]
[408022162,1773037841079,-500.0,0.00019999,2]
[408022164,1773037841088,-476.17233908,0.00019999,2]
[408022166,1773037841098,-3234.0,0.0002,2]
[408022168,1773037841107,-100972.7807596,0.0002,2]
[408022170,1773037841122,-748.26893567,0.0002,2]
[408022198,1773037841404,-717.24841014,0.00019288,2]
[408022200,1773037841414,-13183.60255348,0.0002,2]
[408022205,1773037841455,-635.10899384,0.0002,2]
[408022263,1773037842535,-322.94797957,0.00019288,2]
[408022377,1773037845350,-394.30043057,0.00019288,2]
[408022379,1773037845360,-2624.28853801,0.00019998,2]
[408022383,1773037845411,-329.33164874,0.00019998,2]
[408022384,1773037845422,-341.02390327,0.00019998,2]
[408022385,1773037845528,-210.35590998,0.00019998,2]
[408022386,1773037845537,-180.72708798,0.0002,2]
[408022396,1773037946696,500.0,8e-05,2]
[408022397,1773037947187,500.0,8e-05,2]
[408022398,1773037947699,500.0,8e-05,2]
[408022399,1773037948172,830.87369684,8e-05,2]
[408022400,1773037948202,500.0,8e-05,2]
[408022401,1773038105463,170.0,0.00012,3]
[408022402,1773038247149,500.0,8e-05,2]
[408022403,1773038250579,500.0,8e-05,2]
[408022404,1773038251054,523.44618398,8e-05,2]
[408022405,1773038255004,-300.0,0.00014999,2]
[408022406,1773038255034,-170.0,0.00015,3]
[408022407,1773038255065,-500.0,0.00015,30]
[408022408,1773038255095,-500.0,0.00015,30]
[408022409,1773038255125,-500.0,0.00015,30]
[408022410,1773038255156,-500.0,0.00015,30]
[408022411,1773038255187,-500.0,0.00015,30]
[408022412,1773038255218,-500.0,0.00015,30]
[408022413,1773038255249,-440.38476081,0.00015,30]
[408022414,1773038255279,-515.6494039,0.00015,30]
[408022415,1773038255310,-501.12391094,0.00015,30]
[408022416,1773038256460,-700.0,0.00015,30]
[408022417,1773038256489,-500.0,0.00015,30]
[408022418,1773038256516,-500.0,0.00015,30]
[408022419,1773038256543,-500.0,0.00015,30]
[408022420,1773038256570,-500.0,0.00015,30]
[408022421,1773038256598,-500.0,0.00015,30]
[408022422,1773038256628,-500.0,0.00015,30]
[408022423,1773038256655,-530.34372787,0.00015,30]
[408022424,1773038256681,-500.0,0.00015,30]
[408022425,1773038256709,-39.32254426,0.000151,2]
[408022426,1773038257801,-460.67745574,0.000151,2]
[408022427,1773038257828,-500.0,0.000151,2]
[408022428,1773038257854,-226.88022743,0.000151,2]
[408022429,1773038257881,-875.76545152,0.00015189,3]
[408022430,1773038257909,-500.0,0.00015648,2]
[408022431,1773038257936,-677.15795408,0.00015648,2]
[408022432,1773038257964,-420.0,0.00016416,2]
[408022433,1773038257992,-994.51428652,0.00016819,3]
[408022434,1773038260833,-690.01924942,0.00016819,3]
[408022435,1773038260864,-509.0,0.00017,2]
[408022436,1773038260894,-587.0,0.00017966,2]
[408022437,1773038260921,-500.0,0.00018356,7]
[408022438,1773038260949,-700.0,0.00018356,7]
[408022439,1773038260980,-800.0,0.00018356,7]
[408022440,1773038261010,-903.05150116,0.00018675,2]
[408022441,1773038261220,-621.86849884,0.00018675,2]
[408022442,1773038261249,-453.11,0.00018787,2]
[408022443,1773038261278,-159.56,0.00018858,2]
[408022444,1773038261313,-509.0,0.00018909,3]
[408022445,1773038261344,-500.0,0.00018955,2]
[408022446,1773038261375,-2000.0,0.000192,2]
[408022447,1773038261404,-153.33762346,0.00019355,2]
[408022448,1773038261435,-506.2577554,0.00019452,7]
[408022449,1773038263876,-193.7422446,0.00019452,7]
[408022450,1773038263904,-800.0,0.00019452,7]
[408022451,1773038263935,-358.62420506,0.00019521,2]
[408022452,1773038263968,-1476.68,0.00019521,2]
[408022453,1773038264095,-3789.55065102,0.00019521,2]
[408022454,1773038319791,-700.0,0.00018356,7]
[408022455,1773038319828,-2657.47,0.00018943,2]
[408022456,1773038319860,-153.33762346,0.00019354,2]
[408022457,1773038319888,-700.0,0.00019452,7]
[408022458,1773038319983,-1578.39475308,0.00019521,2]
[408022459,1773038320015,-4632.0445959,0.00019521,2]
[408022460,1773038320055,-735.9208082,0.00019521,2]
[408022461,1773038322657,-830.3291918,0.00019521,2]
[408022462,1773038322696,-8339.3516164,0.00019521,2]
[408022463,1773038325712,-700.0,0.00018356,7]
[408022464,1773038325740,-700.0,0.00019452,7]
[408022465,1773038325767,-1660.6383836,0.00019521,2]
[408022466,1773038325794,-985.17,0.00019534,2]
[408022467,1773038325870,-1908.3932328,0.00019534,2]
[408022468,1773038328808,-1908.4132328,0.00019534,2]
[408022469,1773038328831,-6183.1835344,0.00019534,2]
[408022470,1773038331737,-312.13,0.00019534,2]
[408022471,1773038331767,-150.99,0.00019534,2]
[408022472,1773038331797,-719.21,0.00019534,2]
[408022473,1773038331886,-7635.35,0.00019534,2]
[408022474,1773038344771,-2364.64,0.00019534,2]
[408022475,1773038344812,-1615.55,0.00019534,2]
[408022476,1773038353863,-180.5087261,0.000196,2]
[408022477,1773038369121,-168.0,0.00019653,2]
[408022478,1773038375660,153.33762346,0.00019354,2]
[408022479,1773038384300,-150.0,0.00019714,2]
[408022480,1773038384330,-268.27881417,0.00019714,2]
[408022481,1773038385759,180.5087261,0.000196,2]
[408022483,1773038398039,500.0,0.00018356,7]
[408022484,1773038400832,-150.0,0.00019726,2]
[408022485,1773038400861,-150.0,0.00019726,2]
[408022486,1773038400889,-150.0,0.00019726,2]
[408022487,1773038400917,-150.0,0.00019726,2]
[408022488,1773038400947,-150.0,0.00019726,2]
[408022489,1773038400977,-150.0,0.00019726,2]
[408022490,1773038415714,-1000.0,0.00019726,2]
[408022491,1773038427763,-941.0,0.00019749,2]
[408022492,1773038427784,-300.0,0.00019749,2]
[408022493,1773038427805,-5000.0,0.0001975,7]
[408022494,1773038427828,-168.0,0.00019771,2]
[408022495,1773038427849,-150.0,0.00019781,2]
[408022496,1773038427869,-150.0,0.00019781,2]
[408022497,1773038427899,-150.0,0.00019781,2]
[408022498,1773038427926,-1325.75653448,0.000198,30]
[408022499,1773038427948,-174.0,0.00019817,2]
[408022500,1773038427970,-150.0,0.00019825,2]
[408022501,1773038427993,-150.0,0.00019836,2]
[408022502,1773038428015,-200.0,0.00019836,2]
[408022503,1773038428036,-150.0,0.00019836,2]
[408022504,1773038428066,-200.0,0.0001984,2]
[408022505,1773038428089,-228.78,0.00019863,2]
[408022506,1773038428110,-562.46346552,0.0001988,2]
[408022507,1773038434651,847.0,0.0001936,2]
[408022508,1773038435394,156.67524692,0.00019354,2]
[408022509,1773038435539,-10000.0,0.00019882,3]
[408022510,1773038445594,166.66,0.00018035,2]
[408022511,1773038445633,166.66,0.00018415,2]
[408022512,1773038445669,166.66,0.00018794,2]
[408022513,1773038445717,166.66,0.00019174,2]
[408022514,1773038445746,166.66,0.00019554,2]
[408022515,1773038448627,500.0,0.00018924,2]
[408022516,1773038465105,9500.01,0.00019574,2]
[408022517,1773038465127,3163.03475308,0.00019574,2]
[408022518,1773038465150,5000.01,0.00019574,2]
[408022519,1773038467687,-9250.01,0.00019574,2]
[408022520,1773038467701,-10000.01,0.00019574,2]
[408022521,1773038467716,-10000.01,0.00019574,2]
[408022522,1773038467731,-10000.01,0.00019574,2]
[408022523,1773038472432,-2645.69011918,0.00019574,2]
[408022524,1773038472488,-10000.01,0.00019574,2]
[408022525,1773038472561,-10000.01,0.00019574,2]
[408022526,1773038472664,-10000.01,0.00019574,2]
[408022527,1773038479442,-2081.55294584,0.00019574,2]
[408022528,1773038479469,-253.24682162,0.00019673,2]
[408022529,1773038479499,-150.0,0.00019673,2]
[408022530,1773038479565,-30.41046508,0.00019673,2]
[408022531,1773038482411,-200.0,0.000165,5]
[408022532,1773038482437,-200.0,0.000175,5]
[408022533,1773038482465,-283.0,0.00019535,2]
[408022534,1773038482491,-155.93379654,0.00019673,2]
[408022535,1773038482518,-150.0,0.00019673,2]
[408022536,1773038482546,-150.0,0.00019673,2]
[408022537,1773038482573,-500.0,0.00019673,2]
[408022538,1773038482681,200.0,0.000185,5]
[408022539,1773038482841,218.95708045,0.000195,5]
[408022540,1773038486147,283.0,0.00019519,2]
[408022541,1773038493816,-155.0,0.00019714,2]
[408022542,1773038509419,283.0,0.00019668,2]
[408022543,1773038513766,509.0,0.00017,2]
[408022544,1773038514002,509.0,0.00019032,3]
[408022545,1773038521321,283.0,0.00019704,2]
[408022546,1773038527679,170.0,0.00019714,2]
[408022547,1773038529265,155.0,0.00019714,2]
[408022548,1773038535649,561.6105149,0.00015,30]
[408022549,1773038535681,500.0,0.00015,30]
[408022550,1773038535896,973.11746355,8e-05,2]
[408022551,1773038536354,151.0,0.00019665,2]
[408022552,1773038539137,296.776286,0.00015,30]
[408022553,1773038541632,500.0,0.00015,30]
[408022554,1773038542115,518.85269594,8e-05,2]
[408022555,1773038542582,500.0,0.00015,30]
[408022556,1773038543056,500.0,0.00015,30]
[408022557,1773038543511,20.18532647,0.00015,30]
[408022558,1773038543534,479.81467353,0.00015,30]
[408022559,1773038543994,500.0,8e-05,2]
[408022560,1773038546030,473.58963369,0.00015,30]
[408022561,1773038546178,500.0,0.00015,30]
[408022562,1773038546216,500.0,0.00015,30]
[408022563,1773038546348,500.0,0.00015,30]
[408022564,1773038546821,984.89016242,0.00014714,2]
[408022565,1773038549249,604.37882443,0.00015,30]
[408022566,1773038550112,457.33670593,0.00015,30]
[408022567,1773038550135,7.99428762,0.00015,30]
[408022568,1773038551175,456.11,0.00019178,2]
[408022569,1773038552051,500.0,0.00015,30]
[408022570,1773038594078,2000.0,0.00018935,2]
[408022571,1773038594889,2035.90571238,0.00019617,2]
[408022572,1773038594911,5000.01,0.00019617,2]
[408022573,1773038609592,-3277.86759308,0.00019617,2]
[408022574,1773038612621,-5000.01,0.00019617,2]
[408022575,1773038615642,-1498.18175344,0.00019617,2]
[408022576,1773038615669,-500.0,0.00019673,2]
[408022577,1773038635832,1003.64649312,0.00019617,2]
[408022578,1773038635853,178.18434088,0.00019617,2]
[408022579,1773038640719,172.87392778,0.00019708,2]
[408022580,1773038680420,256.0280639,0.00019672,2]
[408022581,1773038681596,150.0,0.00019672,2]
[408022582,1773038682422,150.0,0.00019672,2]
[408022583,1773038682467,150.0,0.00019672,2]
[408022584,1773038686002,150.0,0.00019672,2]
[408022585,1773038686208,200.0,0.00019672,2]
[408022586,1773038687194,150.0,0.00019672,2]
[408022587,1773038687790,244.64589217,0.00019672,2]
[408022588,1773038688071,250.67426717,0.00019672,2]
[408022589,1773038739136,-157.13002813,0.00019425,2]
[408022590,1773038739165,-524.93762214,0.0001962,2]
[408022591,1773038739306,-579.82171444,0.0001962,2]
[408022592,1773038741888,-1943.95701498,0.0001962,2]
[408022593,1773038741915,-1112.09597004,0.0001962,2]
[408022594,1773038745070,-162.0,0.00019714,2]
[408022595,1773038745097,-170.0,0.00019714,2]
[408022596,1773038747436,152.84,0.00012965,2]
[408022597,1773038753296,453.11,0.00018787,2]
[408022598,1773038764919,847.0,0.0001968,2]
[408022599,1773038767408,200.0,0.00019672,2]
[408022600,1773038769923,166.65,0.00014,2]
[408022601,1773038770544,166.65,0.000179,2]
[408022602,1773038770773,1500.0,0.00018878,2]
[408022603,1773038783556,477.89,9.468e-05,2]
[408022604,1773038783750,371.87,9.966e-05,2]
[408022605,1773038783772,106.02,9.966e-05,2]
[408022606,1773038783960,477.89,0.00010464,2]
[408022607,1773038784174,477.89,0.00010963,2]
[408022608,1773038784653,477.89,0.00011461,2]
[408022609,1773038784688,477.89,0.00011959,2]
[408022610,1773038784762,477.89,0.00012458,2]
[408022611,1773038784968,477.89,0.00012956,2]
[408022612,1773038785181,477.89,0.00013454,2]
[408022613,1773038785398,477.89,0.00013952,2]
[408022614,1773038785593,477.89,0.00014451,2]
[408022615,1773038785796,477.89,0.00014949,2]
[408022616,1773038785999,115.09,0.00015447,2]
[408022617,1773038787294,-362.8,0.00015447,2]
[408022618,1773038787323,-477.89,0.00015946,2]
[408022619,1773038787353,-477.89,0.00016444,2]
[408022620,1773038787382,-477.89,0.00016942,2]
[408022621,1773038787411,-477.89,0.00017441,2]
[408022622,1773038790257,-477.89,0.00017939,2]
[408022623,1773038790285,-477.89,0.00018437,2]
[408022624,1773038790313,-477.89,0.00018935,2]
[408022627,1773038826164,150.0,0.00019672,2]
[408022628,1773038827171,150.0,0.00019672,2]
[408022629,1773038827240,150.0,0.00019672,2]
[408022630,1773038828124,500.0,0.00019672,2]
[408022631,1773038842431,556.16220326,0.00015,30]
[408022632,1773038844337,151.0,0.00019665,2]
[408022633,1773038852649,475.50779674,0.00015,30]
[408022634,1773038852670,27.11491603,0.00015,30]
[408022635,1773038878673,509.0,0.00017,2]
[408022636,1773038878947,509.0,0.00019172,4]
[408022637,1773038886442,150.0,0.00019672,2]
[408022638,1773038886594,150.0,0.00019672,2]
[408022639,1773038888092,150.0,0.00019672,2]
[408022640,1773038888317,150.0,0.00019672,2]
[408022641,1773038888407,150.0,0.00019672,2]
[408022642,1773038888499,150.0,0.00019672,2]
[408022643,1773038888769,150.0,0.00019672,2]
[408022644,1773038889002,500.0,0.00019672,2]
[408022645,1773038890780,200.0,0.00019672,2]
[408022646,1773038890966,150.0,0.00019672,2]
[408022647,1773038890996,150.0,0.00019672,2]
[408022648,1773038919157,172.87392778,0.00019712,2]
[408022649,1773038949394,1732.02115619,0.00019529,2]
[408022650,1773038949417,5000.01,0.00019529,2]
[408022651,1773038950234,-919.44375571,0.00019529,2]
[408022652,1773038954953,200.0,0.00016,5]
[408022653,1773038955385,200.0,0.00017,5]
[408022655,1773038979482,2011.8100646,0.00019529,2]
[408022656,1773039005993,162.0,0.00019714,2]
[408022657,1773039031604,-300.0,0.00019726,2]
[408022658,1773039031613,-700.0,0.00019726,2]
[408022659,1773039031625,-300.0,0.00019726,2]
[408022660,1773039031635,-150.0,0.00019727,2]
[408022661,1773039031647,-150.0,0.00019727,2]
[408022662,1773039031657,-251.75912456,0.00019727,2]
[408022663,1773039031666,-100.24087544,0.00019727,2]
[408022664,1773039031678,-102.04167449,0.00019727,2]
[408022665,1773039031687,-150.0,0.00019727,2]
[408022666,1773039031696,-500.0,0.00019727,2]
[408022667,1773039031706,-150.0,0.00019727,2]
[408022668,1773039031715,-62.76212554,0.00019727,2]
[408022669,1773039031731,-87.23787446,0.00019727,2]
[408022670,1773039031741,-150.0,0.00019727,2]
[408022704,1773039032021,-200.87563366,0.00019727,2]